[Event "*** Titled Tuesday 3|2 Blitz"]
[Site "Chess.com"]
[Date "2016.03.01"]
[Round "9"]
[White "SenseiJulio"]
[Black "Fins0905"]
[Result "1-0"]
[WhiteElo "2615"]
[BlackElo "2456"]
[TimeControl "180+2"]
[EndTime "18:48:02 PST"]
[Termination "SenseiJulio won by resignation"]

1. d4 {[%clk 0:03:00.5]} 1... d5 {[%clk 0:03:00.2]} 2. c4 {[%clk 0:03:01.5]}
2... c6 {[%clk 0:03:01.3]} 3. Nf3 {[%clk 0:03:02.2]} 3... Nf6 {[%clk 0:03:02.7]}
4. Nc3 {[%clk 0:03:03.4]} 4... dxc4 {[%clk 0:03:02.9]} 5. e4 {[%clk 0:03:04.5]}
5... b5 {[%clk 0:03:03.3]} 6. e5 {[%clk 0:03:06]} 6... Nd5 {[%clk 0:03:04.4]} 7.
a4 {[%clk 0:03:06.9]} 7... e6 {[%clk 0:03:02]} 8. Ng5 {[%clk 0:03:07.4]} 8...
Be7 {[%clk 0:02:54.2]} 9. h4 {[%clk 0:03:08.5]} 9... Bb7 {[%clk 0:02:46.9]} 10.
Qh5 {[%clk 0:02:54.9]} 10... g6 {[%clk 0:02:32.9]} 11. Qf3 {[%clk 0:02:53.2]}
11... O-O {[%clk 0:02:24.1]} 12. Nce4 {[%clk 0:02:16.1]} 12... Nb4 {[%clk
0:02:10.1]} 13. Be3 {[%clk 0:01:42.7]} 13... Nc2+ {[%clk 0:01:58.4]} 14. Kd1
{[%clk 0:01:41.2]} 14... Nxd4 {[%clk 0:01:41.3]} 15. Qh3 {[%clk 0:01:28.9]}
15... Nb3+ {[%clk 0:01:31.6]} 16. Ke1 {[%clk 0:01:23.2]} 16... Nxa1 {[%clk
0:01:29.4]} 17. h5 {[%clk 0:01:08]} 17... c5 {[%clk 0:00:58.2]} 18. hxg6 {[%clk
0:00:41]} 18... Nc2+ {[%clk 0:00:55.1]} 19. Ke2 {[%clk 0:00:42.4]} 19... Qd3+
{[%clk 0:00:48.3]} 20. Kf3 {[%clk 0:00:43.5]} 20... Bxe4+ {[%clk 0:00:43.9]} 21.
Kg3 {[%clk 0:00:37.1]} 21... Qxe3+ {[%clk 0:00:22.1]} 22. fxe3 {[%clk
0:00:37.6]} 22... Bxg6 {[%clk 0:00:21.8]} 23. Nxh7 {[%clk 0:00:37.8]} 23... Nxe3
{[%clk 0:00:13.6]} 24. Nf6+ {[%clk 0:00:34.6]} 24... Bxf6 {[%clk 0:00:13.5]} 25.
exf6 {[%clk 0:00:36.5]} 25... Nf5+ {[%clk 0:00:13.4]} 26. Kf2 {[%clk 0:00:36.2]}
1-0

[Event "*** Titled Tuesday 3|2 Blitz"]
[Site "Chess.com"]
[Date "2016.03.01"]
[Round "9"]
[White "hermionegrangermagic"]
[Black "jcgs1030"]
[Result "1-0"]
[WhiteElo "2317"]
[BlackElo "2211"]
[TimeControl "180+2"]
[EndTime "18:48:32 PST"]
[Termination "hermionegrangermagic won by checkmate"]

1. e4 {[%clk 0:03:00.4]} 1... c5 {[%clk 0:03:00.3]} 2. Nf3 {[%clk 0:03:00.7]}
2... d6 {[%clk 0:03:01.8]} 3. d4 {[%clk 0:03:00.7]} 3... cxd4 {[%clk 0:03:03.7]}
4. Nxd4 {[%clk 0:03:02.6]} 4... Nf6 {[%clk 0:03:05.2]} 5. Nc3 {[%clk 0:03:03.4]}
5... g6 {[%clk 0:03:05.6]} 6. Be3 {[%clk 0:03:03.4]} 6... a6 {[%clk 0:03:06.3]}
7. f3 {[%clk 0:03:03]} 7... b5 {[%clk 0:03:06.8]} 8. Qd2 {[%clk 0:03:03.7]} 8...
Bb7 {[%clk 0:03:07.3]} 9. O-O-O {[%clk 0:02:58.6]} 9... Nbd7 {[%clk 0:03:08.2]}
10. g4 {[%clk 0:02:41.6]} 10... Ne5 {[%clk 0:03:05.5]} 11. g5 {[%clk 0:02:38.3]}
11... Nfd7 {[%clk 0:03:06.3]} 12. h3 {[%clk 0:02:26.7]} 12... Rc8 {[%clk
0:02:59.2]} 13. Nd5 {[%clk 0:02:18.5]} 13... Bxd5 {[%clk 0:02:53.8]} 14. exd5
{[%clk 0:02:18.2]} 14... Nb6 {[%clk 0:02:55.2]} 15. Nb3 {[%clk 0:01:57.9]} 15...
Bg7 {[%clk 0:01:21.1]} 16. Qf2 {[%clk 0:01:42.7]} 16... Nbc4 {[%clk 0:01:19.5]}
17. Bd4 {[%clk 0:01:37.7]} 17... O-O {[%clk 0:00:51.8]} 18. h4 {[%clk
0:01:35.4]} 18... h5 {[%clk 0:00:36.1]} 19. gxh6 {[%clk 0:01:31.5]} 19... Bxh6+
{[%clk 0:00:37]} 20. f4 {[%clk 0:01:30.9]} 20... Ng4 {[%clk 0:00:31.9]} 21. Qg3
{[%clk 0:01:24.3]} 21... Nf6 {[%clk 0:00:10.8]} 22. h5 {[%clk 0:01:22.2]} 22...
Ne4 {[%clk 0:00:05.4]} 23. Qf3 {[%clk 0:01:15.5]} 23... e5 {[%clk 0:00:06.3]}
24. Qxe4 {[%clk 0:01:09.4]} 24... exd4 {[%clk 0:00:02.8]} 25. hxg6 {[%clk
0:01:09.2]} 25... Bg7 {[%clk 0:00:03.9]} 26. Bd3 {[%clk 0:00:58.5]} 26... fxg6
{[%clk 0:00:05]} 27. Qe6+ {[%clk 0:00:57.4]} 27... Rf7 {[%clk 0:00:05.7]} 28.
Bxg6 {[%clk 0:00:57.2]} 28... Rc7 {[%clk 0:00:07.4]} 29. Rdg1 {[%clk 0:00:54.9]}
29... d3 {[%clk 0:00:07.8]} 30. Bxf7+ {[%clk 0:00:53.5]} 30... Rxf7 {[%clk
0:00:08.4]} 31. Rxg7+ {[%clk 0:00:52.6]} 31... Kxg7 {[%clk 0:00:09.2]} 32. Qh6+
{[%clk 0:00:52.9]} 32... Kg8 {[%clk 0:00:08.2]} 33. Qh8# {[%clk 0:00:53.1]} 1-0

[Event "*** Titled Tuesday 3|2 Blitz"]
[Site "Chess.com"]
[Date "2016.03.01"]
[Round "9"]
[White "maciek_92"]
[Black "jcibarra"]
[Result "0-1"]
[WhiteElo "2468"]
[BlackElo "2522"]
[TimeControl "180+2"]
[EndTime "18:48:48 PST"]
[Termination "jcibarra won by resignation"]

1. c4 {[%clk 0:03:01.9]} 1... Nf6 {[%clk 0:03:00.6]} 2. Nc3 {[%clk 0:03:02.2]}
2... d6 {[%clk 0:03:00.4]} 3. g3 {[%clk 0:03:02]} 3... g6 {[%clk 0:03:01.5]} 4.
Bg2 {[%clk 0:03:03.2]} 4... Bg7 {[%clk 0:03:03.1]} 5. d4 {[%clk 0:03:04.3]} 5...
O-O {[%clk 0:03:04.1]} 6. Nf3 {[%clk 0:03:05.8]} 6... Nc6 {[%clk 0:03:05.4]} 7.
O-O {[%clk 0:03:07.3]} 7... Bf5 {[%clk 0:03:06.3]} 8. b3 {[%clk 0:03:08.4]} 8...
Ne4 {[%clk 0:03:04.9]} 9. Nd5 {[%clk 0:03:09.6]} 9... Nf6 {[%clk 0:03:05.3]} 10.
Ne3 {[%clk 0:03:07.6]} 10... Be4 {[%clk 0:03:05.7]} 11. Bb2 {[%clk 0:03:06.5]}
11... d5 {[%clk 0:03:04.4]} 12. Rc1 {[%clk 0:03:05.1]} 12... a5 {[%clk
0:03:01.4]} 13. Ne5 {[%clk 0:02:59.8]} 13... Bxg2 {[%clk 0:02:55.2]} 14. Kxg2
{[%clk 0:03:01.7]} 14... Nb4 {[%clk 0:02:27.6]} 15. a3 {[%clk 0:02:53.8]} 15...
Na6 {[%clk 0:02:28.5]} 16. cxd5 {[%clk 0:02:51.2]} 16... Nxd5 {[%clk 0:02:29.3]}
17. N3c4 {[%clk 0:02:47.7]} 17... c6 {[%clk 0:02:23.5]} 18. e4 {[%clk
0:02:47.3]} 18... Nf6 {[%clk 0:02:18.9]} 19. Qe2 {[%clk 0:02:39.2]} 19... Nc7
{[%clk 0:02:14.2]} 20. Rfd1 {[%clk 0:02:38.1]} 20... Nb5 {[%clk 0:02:13.5]} 21.
a4 {[%clk 0:02:30.2]} 21... Nd6 {[%clk 0:02:14.7]} 22. f3 {[%clk 0:02:31.5]}
22... Re8 {[%clk 0:02:10.9]} 23. Ba3 {[%clk 0:02:29.6]} 23... Bf8 {[%clk
0:01:58]} 24. Bc5 {[%clk 0:02:19.2]} 24... Nc8 {[%clk 0:01:52.2]} 25. d5 {[%clk
0:01:36]} 25... cxd5 {[%clk 0:01:51.3]} 26. exd5 {[%clk 0:01:37.9]} 26... Nxd5
{[%clk 0:01:33.6]} 27. Nxf7 {[%clk 0:01:08.4]} 27... Kxf7 {[%clk 0:01:28.4]} 28.
Ne5+ {[%clk 0:01:08.2]} 28... Kg8 {[%clk 0:01:25]} 29. Qb5 {[%clk 0:00:59.9]}
29... e6 {[%clk 0:01:09.5]} 30. Qxb7 {[%clk 0:01:00]} 30... Bxc5 {[%clk
0:01:04.8]} 31. Rxd5 {[%clk 0:00:16.1]} 31... exd5 {[%clk 0:00:56.5]} 32. Qf7+
{[%clk 0:00:17.5]} 32... Kh8 {[%clk 0:00:57.6]} 33. Rxc5 {[%clk 0:00:17.8]}
33... Rxe5 {[%clk 0:00:38.1]} 34. Rc7 {[%clk 0:00:18]} 34... Re7 {[%clk
0:00:36.7]} 35. Qf6+ {[%clk 0:00:18.8]} 35... Kg8 {[%clk 0:00:37]} 0-1

[Event "*** Titled Tuesday 3|2 Blitz"]
[Site "Chess.com"]
[Date "2016.03.01"]
[Round "9"]
[White "TheMagician"]
[Black "Kawhi_Leonard2"]
[Result "1-0"]
[WhiteElo "2175"]
[BlackElo "2090"]
[TimeControl "180+2"]
[EndTime "18:49:05 PST"]
[Termination "TheMagician won on time"]

1. e4 {[%clk 0:03:01.9]} 1... c5 {[%clk 0:03:00.6]} 2. Nf3 {[%clk 0:03:02.7]}
2... d6 {[%clk 0:03:01.8]} 3. d4 {[%clk 0:03:03.9]} 3... cxd4 {[%clk 0:03:03]}
4. Nxd4 {[%clk 0:03:05.8]} 4... Nf6 {[%clk 0:03:04.2]} 5. Nc3 {[%clk 0:03:07]}
5... g6 {[%clk 0:03:05.4]} 6. Bc4 {[%clk 0:03:06.7]} 6... Bg7 {[%clk 0:03:06.4]}
7. Bb3 {[%clk 0:03:07.4]} 7... O-O {[%clk 0:03:07.7]} 8. f3 {[%clk 0:03:08.7]}
8... Nc6 {[%clk 0:03:08.9]} 9. Be3 {[%clk 0:03:09.8]} 9... Bd7 {[%clk
0:03:10.2]} 10. Qd2 {[%clk 0:03:10.8]} 10... Rc8 {[%clk 0:03:10.9]} 11. O-O-O
{[%clk 0:03:11.7]} 11... Nxd4 {[%clk 0:03:11.3]} 12. Bxd4 {[%clk 0:03:12.3]}
12... b5 {[%clk 0:03:12.5]} 13. g4 {[%clk 0:02:58.3]} 13... a5 {[%clk
0:03:12.1]} 14. g5 {[%clk 0:02:50.1]} 14... Nh5 {[%clk 0:03:09.4]} 15. Bxg7
{[%clk 0:02:47.9]} 15... Nxg7 {[%clk 0:03:06.6]} 16. a3 {[%clk 0:02:39.1]} 16...
Rc5 {[%clk 0:02:34.5]} 17. Nd5 {[%clk 0:02:34.3]} 17... Be6 {[%clk 0:02:29]} 18.
Kb1 {[%clk 0:02:30.1]} 18... Bxd5 {[%clk 0:02:25.2]} 19. Bxd5 {[%clk 0:02:27.8]}
19... Qc7 {[%clk 0:02:25.9]} 20. c3 {[%clk 0:02:28]} 20... Rb8 {[%clk
0:02:13.9]} 21. Rc1 {[%clk 0:02:28.6]} 21... Qb6 {[%clk 0:02:11]} 22. h4 {[%clk
0:02:13.8]} 22... e6 {[%clk 0:01:47.5]} 23. Ba2 {[%clk 0:02:11.9]} 23... d5
{[%clk 0:01:38.3]} 24. b4 {[%clk 0:02:01]} 24... Rc7 {[%clk 0:01:26.6]} 25. exd5
{[%clk 0:02:02.3]} 25... Rd8 {[%clk 0:01:20.4]} 26. Qd4 {[%clk 0:01:59.6]} 26...
Qxd4 {[%clk 0:01:09.2]} 27. cxd4 {[%clk 0:02:00.3]} 27... Rxc1+ {[%clk
0:01:09.6]} 28. Rxc1 {[%clk 0:02:01.2]} 28... axb4 {[%clk 0:01:08.1]} 29. dxe6
{[%clk 0:02:00.5]} 29... Nxe6 {[%clk 0:01:05.7]} 30. d5 {[%clk 0:01:50.8]} 30...
Nd4 {[%clk 0:00:59.4]} 31. axb4 {[%clk 0:01:44.9]} 31... Nxf3 {[%clk 0:01:00.2]}
32. Rc5 {[%clk 0:01:44.8]} 32... Nd4 {[%clk 0:00:48.3]} 33. Kb2 {[%clk
0:01:42.2]} 33... Kg7 {[%clk 0:00:37.4]} 34. Rc7 {[%clk 0:01:39.6]} 34... Rd6
{[%clk 0:00:35]} 35. Rb7 {[%clk 0:01:28]} 35... Nf3 {[%clk 0:00:29.5]} 36. Rxb5
{[%clk 0:01:27]} 36... Nxh4 {[%clk 0:00:30.6]} 37. Rb7 {[%clk 0:01:22.6]} 37...
Nf3 {[%clk 0:00:29.4]} 38. b5 {[%clk 0:01:22.9]} 38... Nxg5 {[%clk 0:00:30.1]}
39. Kc3 {[%clk 0:01:21.7]} 39... h5 {[%clk 0:00:31.1]} 40. Bc4 {[%clk
0:01:18.3]} 40... h4 {[%clk 0:00:31.3]} 41. Ra7 {[%clk 0:01:19.5]} 41... h3
{[%clk 0:00:25.9]} 42. Ra1 {[%clk 0:01:20.1]} 42... Nf3 {[%clk 0:00:18.7]} 43.
Rh1 {[%clk 0:01:20]} 43... h2 {[%clk 0:00:12.6]} 44. Kb4 {[%clk 0:01:21.4]}
44... g5 {[%clk 0:00:11.8]} 45. Kc5 {[%clk 0:01:22.5]} 45... Rd8 {[%clk
0:00:12.9]} 46. Be2 {[%clk 0:01:22.7]} 1-0

[Event "*** Titled Tuesday 3|2 Blitz"]
[Site "Chess.com"]
[Date "2016.03.01"]
[Round "9"]
[White "Iwannabetheguy"]
[Black "chessking2151"]
[Result "0-1"]
[WhiteElo "2011"]
[BlackElo "2304"]
[TimeControl "180+2"]
[EndTime "18:49:09 PST"]
[Termination "chessking2151 won by resignation"]

1. e4 {[%clk 0:03:01.9]} 1... c5 {[%clk 0:03:00.4]} 2. Nf3 {[%clk 0:03:03.1]}
2... Nc6 {[%clk 0:03:01.1]} 3. d4 {[%clk 0:03:04.4]} 3... cxd4 {[%clk
0:03:02.1]} 4. Nxd4 {[%clk 0:03:06]} 4... g6 {[%clk 0:03:03.4]} 5. Nc3 {[%clk
0:03:06.5]} 5... Bg7 {[%clk 0:03:04.6]} 6. Be3 {[%clk 0:03:08]} 6... Nf6 {[%clk
0:03:05.9]} 7. Bc4 {[%clk 0:03:08.5]} 7... O-O {[%clk 0:03:07.1]} 8. Bb3 {[%clk
0:03:09.4]} 8... d6 {[%clk 0:03:08.2]} 9. f3 {[%clk 0:03:05.7]} 9... Bd7 {[%clk
0:03:09.3]} 10. Qd2 {[%clk 0:03:04.4]} 10... Rc8 {[%clk 0:03:10.4]} 11. O-O-O
{[%clk 0:03:05.1]} 11... Ne5 {[%clk 0:03:11.4]} 12. h4 {[%clk 0:03:05.6]} 12...
h5 {[%clk 0:03:11.4]} 13. Kb1 {[%clk 0:03:00.1]} 13... Nc4 {[%clk 0:03:10.7]}
14. Bxc4 {[%clk 0:02:59]} 14... Rxc4 {[%clk 0:03:12.6]} 15. g4 {[%clk
0:02:35.9]} 15... b5 {[%clk 0:03:12.1]} 16. gxh5 {[%clk 0:02:34.1]} 16... b4
{[%clk 0:03:00.8]} 17. Nd5 {[%clk 0:02:31.4]} 17... Nxh5 {[%clk 0:02:58.8]} 18.
Rdg1 {[%clk 0:02:25.6]} 18... e6 {[%clk 0:02:55]} 19. Nxb4 {[%clk 0:02:08.3]}
19... a5 {[%clk 0:02:47.1]} 20. Na6 {[%clk 0:01:52.4]} 20... Qb6 {[%clk
0:02:35.2]} 21. b3 {[%clk 0:01:45.2]} 21... Rxd4 {[%clk 0:01:34.6]} 22. Bxd4
{[%clk 0:01:33.7]} 22... Qxd4 {[%clk 0:01:31.9]} 23. Qxd4 {[%clk 0:01:29.5]}
23... Bxd4 {[%clk 0:01:33.8]} 24. Rd1 {[%clk 0:01:27.2]} 24... e5 {[%clk
0:01:18.7]} 25. Nc7 {[%clk 0:01:24]} 25... Bc6 {[%clk 0:01:11.4]} 26. Nd5 {[%clk
0:01:21.5]} 26... Bxd5 {[%clk 0:01:10.9]} 27. exd5 {[%clk 0:01:22.3]} 27... Ng3
{[%clk 0:01:11.7]} 28. Rh2 {[%clk 0:01:19]} 28... Rc8 {[%clk 0:01:12.3]} 29. a4
{[%clk 0:01:06.8]} 29... f5 {[%clk 0:01:10.1]} 30. Rg2 {[%clk 0:00:41.3]} 30...
f4 {[%clk 0:01:10.6]} 31. Rd3 {[%clk 0:00:33.8]} 31... Kf7 {[%clk 0:01:10.6]}
32. Ka2 {[%clk 0:00:32]} 32... Nf5 {[%clk 0:01:06.9]} 33. Rdd2 {[%clk
0:00:18.1]} 33... Nxh4 {[%clk 0:01:06.3]} 34. Rg4 {[%clk 0:00:09.9]} 34... Nxf3
{[%clk 0:00:53.5]} 35. Rdg2 {[%clk 0:00:10.8]} 35... g5 {[%clk 0:00:52.2]} 36.
b4 {[%clk 0:00:11.9]} 36... axb4 {[%clk 0:00:51.6]} 37. Kb3 {[%clk 0:00:13.3]}
37... Bc3 {[%clk 0:00:46]} 38. a5 {[%clk 0:00:13.9]} 38... Kf6 {[%clk
0:00:44.6]} 39. Ka4 {[%clk 0:00:14.1]} 39... Kf5 {[%clk 0:00:46.1]} 40. Kb5
{[%clk 0:00:14.4]} 40... e4 {[%clk 0:00:45.3]} 41. a6 {[%clk 0:00:15.2]} 41...
e3 {[%clk 0:00:45.9]} 42. a7 {[%clk 0:00:15.3]} 42... Bd4 {[%clk 0:00:42.3]} 43.
Ka6 {[%clk 0:00:15.4]} 43... Ra8 {[%clk 0:00:43.2]} 44. Rxg5+ {[%clk 0:00:15.8]}
44... Nxg5 {[%clk 0:00:43.8]} 45. Rxg5+ {[%clk 0:00:16.3]} 0-1

[Event "*** Titled Tuesday 3|2 Blitz"]
[Site "Chess.com"]
[Date "2016.03.01"]
[Round "9"]
[White "LADIESGET2KNOWME"]
[Black "AlexanderL"]
[Result "1/2-1/2"]
[WhiteElo "2382"]
[BlackElo "2566"]
[TimeControl "180+2"]
[EndTime "18:49:32 PST"]
[Termination "Game drawn by repetition"]

1. d4 {[%clk 0:03:01.9]} 1... d5 {[%clk 0:02:58.6]} 2. Nc3 {[%clk 0:03:02.6]}
2... Nf6 {[%clk 0:02:58.5]} 3. Bg5 {[%clk 0:03:03.7]} 3... e6 {[%clk 0:02:58.6]}
4. e4 {[%clk 0:03:04.3]} 4... dxe4 {[%clk 0:02:59.8]} 5. Nxe4 {[%clk 0:03:05.9]}
5... Be7 {[%clk 0:02:59]} 6. Nxf6+ {[%clk 0:02:58.3]} 6... Bxf6 {[%clk
0:02:49.2]} 7. Bxf6 {[%clk 0:02:57.1]} 7... Qxf6 {[%clk 0:02:51.1]} 8. Nf3
{[%clk 0:02:58.4]} 8... O-O {[%clk 0:02:34.8]} 9. Bd3 {[%clk 0:02:55.9]} 9... b6
{[%clk 0:02:31.7]} 10. Be4 {[%clk 0:02:52.5]} 10... c6 {[%clk 0:02:33]} 11. O-O
{[%clk 0:02:42.9]} 11... Bb7 {[%clk 0:02:28.4]} 12. c3 {[%clk 0:02:36.7]} 12...
Nd7 {[%clk 0:02:23.4]} 13. Re1 {[%clk 0:02:36]} 13... Rfd8 {[%clk 0:02:21.4]}
14. Qe2 {[%clk 0:02:36.5]} 14... g6 {[%clk 0:02:15.9]} 15. Rad1 {[%clk
0:02:20.4]} 15... Rab8 {[%clk 0:02:10.9]} 16. h3 {[%clk 0:02:14.1]} 16... Ba8
{[%clk 0:02:02.2]} 17. Rd2 {[%clk 0:02:05.5]} 17... c5 {[%clk 0:02:01.1]} 18.
Bxa8 {[%clk 0:02:04]} 18... Rxa8 {[%clk 0:02:01.5]} 19. Red1 {[%clk 0:02:01.2]}
19... cxd4 {[%clk 0:02:02.4]} 20. Rxd4 {[%clk 0:01:44.1]} 20... Nf8 {[%clk
0:02:02.9]} 21. Ne5 {[%clk 0:01:40.5]} 21... Rxd4 {[%clk 0:02:02.1]} 22. Rxd4
{[%clk 0:01:42.4]} 22... Rd8 {[%clk 0:01:56]} 23. Ng4 {[%clk 0:01:31.5]} 23...
Qg5 {[%clk 0:01:48.3]} 24. Rxd8 {[%clk 0:01:12.7]} 24... Qxd8 {[%clk 0:01:47.3]}
25. Qe5 {[%clk 0:01:14.2]} 25... Qd1+ {[%clk 0:01:39.1]} 26. Kh2 {[%clk
0:01:14.4]} 26... Nd7 {[%clk 0:01:40.2]} 27. Nh6+ {[%clk 0:00:41.2]} 27... Kf8
{[%clk 0:01:40.6]} 28. Qh8+ {[%clk 0:00:42.7]} 28... Ke7 {[%clk 0:01:41.7]} 29.
Qxh7 {[%clk 0:00:39.3]} 29... Qd6+ {[%clk 0:01:34.9]} 30. g3 {[%clk 0:00:38.2]}
30... Ne5 {[%clk 0:01:35.6]} 31. Ng8+ {[%clk 0:00:36.4]} 31... Kd7 {[%clk
0:01:15.3]} 32. Nf6+ {[%clk 0:00:37.2]} 32... Kc6 {[%clk 0:01:13.3]} 33. Ng4
{[%clk 0:00:34.1]} 33... Nf3+ {[%clk 0:01:04.6]} 34. Kg2 {[%clk 0:00:34.8]}
34... Qd5 {[%clk 0:01:02]} 35. Ne3 {[%clk 0:00:29]} 35... Qe4 {[%clk 0:00:53.7]}
36. Qh8 {[%clk 0:00:24.3]} 36... Ng5+ {[%clk 0:00:24.1]} 37. Kh2 {[%clk
0:00:18.4]} 37... Nf3+ {[%clk 0:00:18.9]} 38. Kg2 {[%clk 0:00:19.1]} 38... Ng5+
{[%clk 0:00:17]} 39. Kh2 {[%clk 0:00:12.8]} 39... Nf3+ {[%clk 0:00:13.2]} 40.
Kg2 {[%clk 0:00:14.2]} 40... Ng5+ {[%clk 0:00:14.4]} 41. Kh2 {[%clk 0:00:15.5]}
1/2-1/2

[Event "*** Titled Tuesday 3|2 Blitz"]
[Site "Chess.com"]
[Date "2016.03.01"]
[Round "9"]
[White "ethylalcohol"]
[Black "Titus369"]
[Result "0-1"]
[WhiteElo "1775"]
[BlackElo "2226"]
[TimeControl "180+2"]
[EndTime "18:49:38 PST"]
[Termination "Titus369 won on time"]

1. e4 {[%clk 0:03:01.9]} 1... c5 {[%clk 0:03:00.3]} 2. Nc3 {[%clk 0:03:01.8]}
2... d6 {[%clk 0:02:59.5]} 3. g3 {[%clk 0:03:02.6]} 3... g6 {[%clk 0:03:00.3]}
4. Bg2 {[%clk 0:03:04.1]} 4... Bg7 {[%clk 0:03:00.9]} 5. Nge2 {[%clk 0:03:05]}
5... Nc6 {[%clk 0:03:02]} 6. d3 {[%clk 0:03:06.1]} 6... e6 {[%clk 0:03:03.4]} 7.
Be3 {[%clk 0:03:06.2]} 7... Nge7 {[%clk 0:03:03.7]} 8. Qd2 {[%clk 0:03:06.8]}
8... Rb8 {[%clk 0:03:01.4]} 9. O-O {[%clk 0:03:02.4]} 9... b5 {[%clk 0:03:02.5]}
10. Bh6 {[%clk 0:02:52.8]} 10... O-O {[%clk 0:03:00.7]} 11. h4 {[%clk
0:02:46.9]} 11... b4 {[%clk 0:02:55.5]} 12. Nd1 {[%clk 0:02:47.6]} 12... d5
{[%clk 0:02:44.2]} 13. h5 {[%clk 0:02:39]} 13... f6 {[%clk 0:02:16.4]} 14. Bxg7
{[%clk 0:02:10.3]} 14... Kxg7 {[%clk 0:02:13.3]} 15. exd5 {[%clk 0:02:00.5]}
15... exd5 {[%clk 0:02:11.9]} 16. d4 {[%clk 0:02:00]} 16... c4 {[%clk
0:02:09.3]} 17. Ne3 {[%clk 0:01:55.1]} 17... Be6 {[%clk 0:01:58.1]} 18. Nf4
{[%clk 0:01:54.6]} 18... Bg8 {[%clk 0:01:57.3]} 19. hxg6 {[%clk 0:01:30.7]}
19... hxg6 {[%clk 0:01:51.9]} 20. Ng4 {[%clk 0:01:22.5]} 20... Nf5 {[%clk
0:01:41.1]} 21. c3 {[%clk 0:01:15.6]} 21... a5 {[%clk 0:01:39.7]} 22. Rae1
{[%clk 0:01:13.7]} 22... Qd7 {[%clk 0:01:37.2]} 23. Bh3 {[%clk 0:00:53.6]} 23...
Qd6 {[%clk 0:01:19.9]} 24. Ne3 {[%clk 0:00:34.1]} 24... Nh6 {[%clk 0:01:14.7]}
25. Neg2 {[%clk 0:00:22.8]} 25... Rbe8 {[%clk 0:00:58.7]} 26. Nh4 {[%clk
0:00:15.3]} 26... g5 {[%clk 0:00:53]} 27. Nh5+ {[%clk 0:00:16.2]} 27... Kh7
{[%clk 0:00:51.6]} 28. Nf5 {[%clk 0:00:15.4]} 28... Nxf5 {[%clk 0:00:46.1]} 29.
Bxf5+ {[%clk 0:00:17.3]} 29... Kh8 {[%clk 0:00:47.4]} 30. Qd1 {[%clk 0:00:07.9]}
30... Bh7 {[%clk 0:00:39.2]} 31. Qg4 {[%clk 0:00:05.5]} 31... Ne7 {[%clk
0:00:28.4]} 32. Bxh7 {[%clk 0:00:05.7]} 32... Kxh7 {[%clk 0:00:30.3]} 33. Nxf6+
{[%clk 0:00:05.4]} 33... Qxf6 {[%clk 0:00:25.4]} 34. Kg2 {[%clk 0:00:04.1]}
34... Kg7 {[%clk 0:00:20.3]} 35. Re6 {[%clk 0:00:04]} 35... Qf5 {[%clk
0:00:19.9]} 36. Qe2 {[%clk 0:00:04.6]} 36... Rf7 {[%clk 0:00:17.2]} 37. Rh1
{[%clk 0:00:04.8]} 37... g4 {[%clk 0:00:11.7]} 0-1

[Event "*** Titled Tuesday 3|2 Blitz"]
[Site "Chess.com"]
[Date "2016.03.01"]
[Round "9"]
[White "chesstatour"]
[Black "Rating-Schmating"]
[Result "0-1"]
[WhiteElo "1982"]
[BlackElo "2240"]
[TimeControl "180+2"]
[EndTime "18:49:52 PST"]
[Termination "Rating-Schmating won on time"]

1. c4 {[%clk 0:03:01.9]} 1... e6 {[%clk 0:03:01.9]} 2. Nc3 {[%clk 0:03:02.2]}
2... Nf6 {[%clk 0:03:03.3]} 3. d4 {[%clk 0:03:01]} 3... b6 {[%clk 0:03:04.3]} 4.
f3 {[%clk 0:03:01]} 4... Bb7 {[%clk 0:03:03.8]} 5. e4 {[%clk 0:03:02.2]} 5...
Bb4 {[%clk 0:03:02.9]} 6. Bd3 {[%clk 0:02:59]} 6... d5 {[%clk 0:03:00.9]} 7.
cxd5 {[%clk 0:02:58]} 7... exd5 {[%clk 0:02:59]} 8. e5 {[%clk 0:02:57.3]} 8...
Nfd7 {[%clk 0:02:58.9]} 9. Bf4 {[%clk 0:02:44.4]} 9... O-O {[%clk 0:02:54.5]}
10. Ne2 {[%clk 0:02:44.3]} 10... c5 {[%clk 0:02:54.8]} 11. Qc2 {[%clk
0:01:33.4]} 11... h6 {[%clk 0:02:40.9]} 12. O-O {[%clk 0:01:17]} 12... cxd4
{[%clk 0:02:38.8]} 13. Nb5 {[%clk 0:01:15.4]} 13... Bc5 {[%clk 0:02:35.1]} 14.
Kh1 {[%clk 0:01:03.2]} 14... a6 {[%clk 0:02:33.3]} 15. Nbxd4 {[%clk 0:01:02.9]}
15... Bxd4 {[%clk 0:02:32]} 16. Nxd4 {[%clk 0:01:04.8]} 16... Nc5 {[%clk
0:02:33]} 17. Bh7+ {[%clk 0:00:54.3]} 17... Kh8 {[%clk 0:02:28.2]} 18. b4 {[%clk
0:00:55.1]} 18... Ne6 {[%clk 0:02:27.2]} 19. Nxe6 {[%clk 0:00:53.2]} 19... fxe6
{[%clk 0:02:28.1]} 20. Bg3 {[%clk 0:00:50.6]} 20... Nc6 {[%clk 0:02:24.5]} 21.
a3 {[%clk 0:00:50.3]} 21... Nd4 {[%clk 0:02:23.7]} 22. Qd3 {[%clk 0:00:48.4]}
22... Nf5 {[%clk 0:02:23.5]} 23. Bxf5 {[%clk 0:00:37.3]} 23... Rxf5 {[%clk
0:02:24.4]} 24. Rac1 {[%clk 0:00:36.3]} 24... Qd7 {[%clk 0:02:25.4]} 25. Rc2
{[%clk 0:00:32.8]} 25... Rff8 {[%clk 0:02:21.1]} 26. Rfc1 {[%clk 0:00:30.7]}
26... Rfc8 {[%clk 0:02:21.7]} 27. Qg6 {[%clk 0:00:27.2]} 27... Rxc2 {[%clk
0:02:18.9]} 28. Rxc2 {[%clk 0:00:27.2]} 28... Rc8 {[%clk 0:02:19.6]} 29. Rxc8+
{[%clk 0:00:23]} 29... Qxc8 {[%clk 0:02:20.5]} 30. h4 {[%clk 0:00:24.7]} 30...
Qd7 {[%clk 0:02:16.2]} 31. f4 {[%clk 0:00:19.5]} 31... Bc6 {[%clk 0:02:15.9]}
32. f5 {[%clk 0:00:18.2]} 32... exf5 {[%clk 0:02:10.2]} 33. e6 {[%clk
0:00:19.2]} 33... Qe8 {[%clk 0:02:07]} 34. Qxf5 {[%clk 0:00:19.3]} 34... d4
{[%clk 0:02:06]} 35. Be5 {[%clk 0:00:15.2]} 35... d3 {[%clk 0:01:46.8]} 36. Qf7
{[%clk 0:00:09.7]} 36... Qg8 {[%clk 0:01:42.5]} 37. Qg6 {[%clk 0:00:09.1]} 37...
Qh7 {[%clk 0:01:24.7]} 38. Qf7 {[%clk 0:00:06]} 38... d2 {[%clk 0:01:16.9]} 39.
Qf8+ {[%clk 0:00:05.9]} 39... Qg8 {[%clk 0:01:17.8]} 40. Qd6 {[%clk 0:00:07.7]}
40... Qe8 {[%clk 0:01:06.7]} 41. e7 {[%clk 0:00:07.2]} 41... d1=Q+ {[%clk
0:01:01.4]} 42. Qxd1 {[%clk 0:00:06.3]} 42... Qxe7 {[%clk 0:01:02.8]} 43. Qd4
{[%clk 0:00:07.4]} 43... b5 {[%clk 0:01:00.8]} 44. Qf4 {[%clk 0:00:06.6]} 44...
Qd7 {[%clk 0:00:56.5]} 45. Qxh6+ {[%clk 0:00:06.5]} 45... Kg8 {[%clk 0:00:56.9]}
46. Qg5 {[%clk 0:00:06.1]} 46... Qf7 {[%clk 0:00:52.3]} 47. h5 {[%clk
0:00:05.2]} 47... Kh7 {[%clk 0:00:43.3]} 48. Kh2 {[%clk 0:00:04.4]} 48... Be8
{[%clk 0:00:41.6]} 49. g4 {[%clk 0:00:02.9]} 49... Qa2+ {[%clk 0:00:40]} 50. Kh3
{[%clk 0:00:02.9]} 50... Qf7 {[%clk 0:00:35.7]} 0-1